fUSD/lending_fUSD_20240126
["ID","MTS","AMOUNT","RATE_DAILY","PERIOD"]
[312800359,1706263832101,-438.73888158,0.00022894,2]
[312800361,1706263837529,-549.90488995,0.00022894,2]
[312800362,1706263837538,-151.54137585,0.000229,2]
[312800363,1706263837547,-2800.63588024,0.000229,2]
[312800364,1706263837557,-165.59931597,0.000229,2]
[312800365,1706263837566,-5000.0,0.000229,2]
[312800366,1706263837575,-573.56899739,0.000229,2]
[312800367,1706263837584,-1125.68570751,0.000229,2]
[312800368,1706263837594,-226.21455788,0.000229,2]
[312800369,1706263837603,-154.65,0.00022906,2]
[312800370,1706263837614,-154.65,0.00022988,2]
[312800371,1706263837623,-230.86080006,0.00022998,2]
[312800372,1706263837633,-14220.64068478,0.00022998,2]
[312800373,1706263837642,-158.86466524,0.00022999,2]
[312800374,1706263837651,-48509.1553277,0.00023,2]
[312800375,1706263837662,-1046.62819213,0.00023,2]
[312800376,1706263837674,-722.29877558,0.00023,2]
[312800377,1706263837685,-785.96755655,0.00023,2]
[312800378,1706263837700,-1077.4181894,0.00023,2]
[312800379,1706263837712,-11755.77182568,0.00023,2]
[312800416,1706263840126,-1156.58347655,0.00023,2]
[312800417,1706263840792,-191872.98012784,0.00023,2]
[312800418,1706263840806,-831.8685269,0.00023,2]
[312800419,1706263840848,-181542.71473857,0.00023,2]
[312800420,1706263840861,-753.6799968,0.00023,2]
[312800421,1706263840904,-640.041,0.00023,2]
[312800422,1706263840962,-110823.63298359,0.00023,2]
[312800423,1706263840975,-402.325,0.00023,2]
[312800467,1706263842581,-721.1666806,0.00023,2]
[312800468,1706263842593,-409.79455518,0.00023,2]
[312800469,1706263842604,-5512.38230237,0.00023,2]
[312800470,1706263842617,-275.65584983,0.00023,2]
[312800471,1706263842638,-1068.45883983,0.00023,2]
[312800472,1706263842650,-1367.80188262,0.00023,2]
[312800473,1706263843731,-3821.13402988,0.00023,2]
[312800474,1706263843790,-8328.20316958,0.00023,2]
[312800475,1706263843802,-600.02619236,0.00023,2]
[312800476,1706263843850,-263.52169311,0.00023,2]
[312800477,1706263843862,-1192.9975616,0.00023,2]
[312800478,1706263843909,-541.88479081,0.00023,2]
[312800479,1706263843967,-266563.22680967,0.00023,2]
[312800498,1706263845634,-652.38094598,0.00023,2]
[312800499,1706263845647,-561.99479902,0.00023,2]
[312800500,1706263845817,-1417.9566769,0.00023,2]
[312800501,1706263845862,-1467.87505136,0.00023,2]
[312800502,1706263845922,-520.27750325,0.00023,2]
[312800505,1706264371224,325.06,0.00020553,2]
[312800506,1706264805217,308.8,0.00020022,2]
[312800517,1706265033818,-2951.67554482,0.00021691,2]
[312800518,1706265033829,-1000.0,0.00021691,2]
[312800519,1706265033843,-422.46510617,0.00021692,2]
[312800520,1706265033930,-1900.98717889,0.00021692,2]
[312800521,1706265033940,-504.75379186,0.00021693,2]
[312800522,1706265033950,-1023.44847852,0.00021693,2]
[312800523,1706265033959,-300.0,0.00021693,2]
[312800524,1706265033968,-5978.70458387,0.00021702,2]
[312800525,1706265033978,-177.22459552,0.00021704,2]
[312800526,1706265033988,-177.22459551,0.00021746,2]
[312800527,1706265033997,-177.22459551,0.00021787,2]
[312800528,1706265034007,-176.73,0.00021865,2]
[312800529,1706265034016,-833.85,0.00021887,2]
[312800531,1706265034207,-169.13,0.00021915,2]
[312800532,1706265034217,-999.99,0.00021915,2]
[312800533,1706265034227,-218.15,0.00021934,2]
[312800534,1706265034237,-480.0,0.0002197,2]
[312800535,1706265034246,-170.0,0.00022,2]
[312800536,1706265034255,-2733.15,0.00022,2]
[312800537,1706265034265,-3191.74123019,0.00022078,2]
[312800538,1706265034276,-164.4,0.00022102,2]
[312800539,1706265034286,-154.65,0.00022138,2]
[312800540,1706265034295,-525.24,0.00022189,2]
[312800541,1706265034304,-308.8,0.00022285,2]
[312800542,1706265034313,-181.39,0.00022446,2]
[312800543,1706265034323,-520.0,0.0002254,2]
[312800544,1706265034332,-3013.92430134,0.0002277,2]
[312800545,1706265034341,-584.6382,0.000229,2]
[312800546,1706265034350,-151.54492037,0.000229,2]
[312800547,1706265034360,-2619.99659922,0.000229,2]
[312800548,1706265034369,-5000.0,0.000229,2]
[312800549,1706265034379,-1123.05604774,0.000229,2]
[312800550,1706265034388,-155.0,0.00022998,2]
[312800551,1706265034397,-513.6393,0.00022998,2]
[312800552,1706265034406,-295.73068383,0.00022998,2]
[312800553,1706265034416,-219.36744003,0.00022998,2]
[312800554,1706265034425,-700.86786047,0.00022998,2]
[312800555,1706265034434,-309.68661735,0.00022998,2]
[312800556,1706265034443,-155.90753282,0.00022998,2]
[312800557,1706265034452,-502.01326483,0.00022998,2]
[312800558,1706265034462,-234.89781562,0.00022998,2]
[312800559,1706265034471,-291.80377604,0.00022998,2]
[312800560,1706265034480,-289.74620309,0.00022998,2]
[312800561,1706265034490,-155.37183511,0.00022999,2]
[312800562,1706265034499,-155.21159315,0.00022999,2]
[312800563,1706265034508,-32.2791017,0.00022999,2]
[312800564,1706265034521,-375.75798376,0.00022999,2]
[312800565,1706265034530,-951.14773962,0.00022999,2]
[312800566,1706265034542,-1194.05,0.00022999,2]
[312800567,1706265034556,-384.3878097,0.00022999,2]
[312800568,1706265034568,-1711.99249184,0.00022999,2]
[312800569,1706265037743,-2350.23387264,0.00022999,2]
[312800570,1706265037756,-323.17875603,0.00022999,2]
[312800571,1706265037824,-988.1124804,0.00022999,2]
[312800572,1706265037884,-631.10985037,0.00022999,2]
[312800573,1706265038063,-813.24240312,0.00022999,2]
[312800574,1706265038075,-2572.28232177,0.00022999,2]
[312800575,1706265038084,-1263.30427448,0.00022999,2]
[312800576,1706265038094,-1486.50553329,0.00022999,2]
[312800577,1706265038103,-1984.18655,0.00022999,2]
[312800579,1706265038112,-401.03358243,0.00022999,2]
[312800581,1706265038122,-5220.28105398,0.00022999,2]
[312800583,1706265038131,-4640.64426459,0.00022999,2]
[312800584,1706265038140,-2598.67036357,0.00022999,2]
[312800585,1706265038149,-230.73082258,0.00022999,2]
[312800586,1706265038158,-346.4408392,0.00022999,2]
[312800587,1706265038167,-2300.07012469,0.00022999,2]
[312800588,1706265038176,-155.05903451,0.00022999,2]
[312800589,1706265038186,-190.93225541,0.00022999,2]
[312800590,1706265038197,-260.29941624,0.00022999,2]
[312800591,1706265038206,-2922815.70676068,0.00023,2]
[312800592,1706265038215,-56471.71254314,0.00023,2]
[312800615,1706265041092,-263.53449993,0.0002169,2]
[312800634,1706265046085,-354.05818019,0.0002169,2]
[312800635,1706265046094,-1953.31049155,0.00022999,2]
[312800636,1706265046103,-38869.28556044,0.00023,2]
[312800654,1706265050124,299.99,0.00023831,7]
[312800655,1706265513893,208.0,0.00021565,2]
[312800665,1706265929339,-155.0,0.00021995,2]
[312800666,1706265929363,-1000.0,0.00021996,2]
[312800667,1706265929385,-533.21665731,0.00021997,2]
[312800668,1706265929405,-1000.0,0.00022,2]
[312800669,1706265929426,-774.0,0.00022,2]
[312800670,1706265929448,-277.92,0.00022177,2]
[312800671,1706265929471,-394.95584771,0.00022768,2]
[312800672,1706265929495,-494.47329966,0.00022768,2]
[312800673,1706265929518,-150.0,0.00022899,2]
[312800674,1706265929540,-5000.0,0.000229,2]
[312800675,1706265929561,-1720.43419532,0.00022998,2]
[312800676,1706265937734,-1226.85082114,0.00022998,2]
[312800677,1706265937757,-557.45297287,0.00022998,2]
[312800678,1706265937778,-799.89717032,0.00022998,2]
[312800679,1706265937801,-179.85656025,0.00022999,2]
[312800680,1706265937824,-22235.94247542,0.00023,2]
[312800681,1706265942125,-165.70357796,0.00021848,2]
[312800682,1706265942149,-1000.0,0.00022998,2]
[312800683,1706265942173,-3834.29642204,0.00023,2]
[312800684,1706265943582,-5000.0,0.00023,2]
[312800685,1706265945094,-5000.0,0.00023,2]
[312800686,1706266040071,-533.21665731,0.00022999,2]
[312800687,1706266040093,-1000.0,0.00022999,2]
[312800688,1706266040118,-33668.298767,0.00023,2]
[312800689,1706266040141,-1000.0,0.00023,2]
[312800690,1706266040164,-132.48457569,0.00023,2]
[312801263,1706266234376,-1000.0,0.00022821,2]
[312801264,1706266234386,-533.21665731,0.00022822,2]
[312801265,1706266234395,-176.73,0.00023056,2]
[312801266,1706266234405,-19161.49204118,0.00023299,2]
[312801267,1706266234414,-793.0,0.000233,2]
[312801268,1706266234423,-8195.0,0.000233,2]
[312801269,1706266234433,-270.45745944,0.00023598,2]
[312801270,1706266234442,-1360.0,0.000236,2]
[312801271,1706266234451,-636.495,0.000236,2]
[312801272,1706266234460,-210.84333402,0.000236,2]
[312801286,1706266239549,-176.15666598,0.000236,2]
[312801288,1706266239558,-334.837,0.000236,2]
[312801290,1706266239568,-302.04633402,0.000236,2]
[312801292,1706266239610,-534.95366598,0.000236,2]
[312801293,1706266239620,-1858.0,0.000236,2]
[312801294,1706266239630,-948.0,0.000236,2]
[312801295,1706266239639,-683.1740322,0.000236,2]
[312801296,1706266239724,-568.8259678,0.000236,2]
[312801298,1706266239734,-215.0,0.000236,2]
[312801299,1706266239743,-233.8403022,0.000236,2]
[312801300,1706266239969,-999.1596978,0.000236,2]
[312801301,1706266239978,-999.0,0.000236,2]
[312801302,1706266239987,-1938.0,0.000236,2]
[312801303,1706266239996,-595.0,0.000236,2]
[312801304,1706266240006,-236.0,0.000236,2]
[312801305,1706266240015,-427.0,0.000236,2]
[312801306,1706266240023,-319.0,0.000236,2]
[312801307,1706266240032,-860.0,0.000236,2]
[312801308,1706266240042,-5591.0,0.000236,2]
[312801309,1706266240051,-4184.0,0.000236,2]
[312801310,1706266240060,-2911.0,0.000236,2]
[312801311,1706266240069,-7370.0,0.000236,2]
[312801312,1706266240079,-8115.0,0.000236,2]
[312801313,1706266240088,-19743.0,0.000236,2]
[312801314,1706266240097,-2278.0,0.000236,2]
[312801315,1706266240107,-1032.0,0.000236,2]
[312801316,1706266240117,-2000.0,0.00023831,2]
[312801317,1706266240126,-200.0,0.00023831,2]
[312801318,1706266240135,-114.35004018,0.00023855,2]
[312801330,1706266240471,-307.46014093,0.00023482,2]
[312801340,1706266240532,-516.85134,0.00023482,2]
[312801343,1706266240544,-385.57852088,0.00023482,2]
[312801345,1706266240555,-1016.8091,0.00023482,2]
[312801347,1706266240608,-404.97,0.00023482,2]
[312801348,1706266240619,-4828.55702419,0.00023482,2]
[312801349,1706266240628,-171.15995982,0.00023855,2]
[312801350,1706266240637,-201.45283623,0.00024,2]
[312801351,1706266240646,-2000.0,0.00024069,2]
[312801352,1706266240656,-200.0,0.00024069,2]
[312801353,1706266240665,-19999.99,0.00024069,2]
[312801354,1706266240674,-384.0,0.0002416,2]
[312801355,1706266240684,-172.74,0.00024297,2]
[312801356,1706266240693,-200.0,0.0002431,2]
[312801357,1706266240703,-200.0,0.00024553,2]
[312801358,1706266240712,-167.64878724,0.00025,2]
[312801359,1706266240722,-1586.52836602,0.00025,2]
[312801360,1706266240731,-202.3461783,0.00025,2]
[312801361,1706266240740,-303.96283733,0.00025,2]
[312801362,1706266240750,-534.63009096,0.00025,2]
[312801363,1706266240759,-1903.14431336,0.00025,2]
[312801364,1706266240768,-12320.38792651,0.00025,2]
[312801365,1706266240778,-935.13066472,0.00025,2]
[312801366,1706266240787,-450.0,0.00025,3]
[312801367,1706266240796,-323.3899368,0.00025357,2]
[312801368,1706266240805,-176.73,0.00025361,2]
[312801369,1706266240815,-500.0,0.00025447,2]
[312801370,1706266240824,-172.74,0.00025633,2]
[312801371,1706266240833,-616.0,0.00025676,2]
[312801372,1706266240843,-167.0,0.00025705,2]
[312801373,1706266240853,-250.0,0.00025743,2]
[312801374,1706266240863,-694.87,0.00025753,2]
[312801375,1706266240872,-420.19,0.00025773,2]
[312801376,1706266240881,-377.36674556,0.00025808,2]
[312801377,1706266240890,-188.06,0.00025846,2]
[312801378,1706266241042,-154.65,0.00025929,2]
[312801379,1706266241052,-500.0,0.00026,2]
[312801380,1706266241061,-212.35424429,0.00026098,2]
[312801381,1706266241070,-285.51,0.00026119,2]
[312801382,1706266241079,-376.718,0.00026461,2]
[312801383,1706266241088,-982.67404172,0.000265,3]
[312801384,1706266241098,-167.0,0.00026553,2]
[312801385,1706266241108,-13154.88,0.00026575,2]
[312801386,1706266241117,-208.0,0.00026596,2]
[312801387,1706266241126,-1360.0,0.000266,2]
[312801388,1706266241136,-837.0,0.000266,2]
[312801389,1706266241145,-1858.0,0.000266,2]
[312801390,1706266241154,-948.0,0.000266,2]
[312801391,1706266241163,-1252.0,0.000266,2]
[312801392,1706266241172,-215.0,0.000266,2]
[312801393,1706266241181,-1233.0,0.000266,2]
[312801394,1706266241190,-512.776,0.000266,2]
[312801395,1706266241199,-1938.0,0.000266,2]
[312801396,1706266241208,-167.7,0.000266,2]
[312801397,1706266241217,-236.0,0.000266,2]
[312801398,1706266241227,-427.0,0.000266,2]
[312801399,1706266241236,-319.0,0.000266,2]
[312801400,1706266241246,-860.0,0.000266,2]
[312801401,1706266241255,-285.496,0.000266,2]
[312801402,1706266241265,-3355.261,0.000266,2]
[312801403,1706266241274,-2911.0,0.000266,2]
[312801404,1706266241284,-7370.0,0.000266,2]
[312801405,1706266241293,-8115.0,0.000266,2]
[312801406,1706266241302,-19743.0,0.000266,2]
[312801407,1706266241312,-2278.0,0.000266,2]
[312801408,1706266241321,-1032.0,0.000266,2]
[312801409,1706266241330,-243.39006042,0.00026696,2]
[312801410,1706266241340,-420.19,0.00026727,2]
[312801411,1706266241349,-172.74,0.0002697,2]
[312801412,1706266241360,-500.0,0.00027,3]
[312801413,1706266241369,-384.0,0.0002718,2]
[312801414,1706266241379,-694.87,0.00027396,2]
[312801415,1706266241388,-155.0,0.00027397,2]
[312801416,1706266241397,-200.0,0.00027397,2]
[312801417,1706266241406,-284.26,0.00027397,2]
[312801418,1706266241415,-1610.78,0.00027397,2]
[312801419,1706266241424,-162.7,0.00027397,2]
[312801421,1706266241433,-457.88,0.00027397,2]
[312801423,1706266241442,-1000.0,0.000274,2]
[312801425,1706266241452,-167.0,0.00027402,2]
[312801427,1706266241461,-176.73,0.00027667,2]
[312801429,1706266241470,-420.19,0.0002768,2]
[312801431,1706266241478,-284.26,0.00027686,2]
[312801432,1706266241487,-1610.78,0.00027686,2]
[312801433,1706266241496,-457.88,0.00027686,2]
[312801434,1706266241505,-284.26,0.00027974,2]
[312801435,1706266241514,-1610.78,0.00027974,2]
[312801436,1706266241523,-457.88,0.00027974,2]
[312801437,1706266241532,-500.0,0.00028078,2]
[312801438,1706266241541,-162.7,0.00028082,2]
[312801439,1706266241551,-982.67404171,0.00028129,4]
[312801440,1706266241561,-167.0,0.0002825,2]
[312801441,1706266241571,-284.26,0.00028262,2]
[312801442,1706266241581,-1610.78,0.00028262,2]
[312801443,1706266241591,-457.88,0.00028262,2]
[312801444,1706266241600,-172.74,0.00028307,2]
[312801445,1706266241611,-285.51,0.00028383,2]
[312801446,1706266241620,-284.26,0.00028551,2]
[312801447,1706266241630,-1610.78,0.00028551,2]
[312801448,1706266241639,-457.88,0.00028551,2]
[312801449,1706266241647,-420.19,0.00028634,2]
[312801450,1706266241657,-155.0,0.00028767,2]
[312801451,1706266241667,-162.7,0.00028767,2]
[312801452,1706266241677,-284.26,0.00028839,2]
[312801453,1706266241686,-1610.78,0.00028839,2]
[312801454,1706266241695,-457.88,0.00028839,2]
[312801455,1706266241704,-616.0,0.00028886,2]
[312801456,1706266241712,-10382.54182613,0.00028999,2]
[312801457,1706266241721,-296409.70127179,0.00029,2]
[312801458,1706266241937,-644.77640894,0.00029,2]
[312801459,1706266241949,-468.45299402,0.00029,2]
[312801500,1706266245148,-1577.89516639,0.00029,2]
[312801501,1706266245160,-2938.79059619,0.00029,2]
[312801502,1706266245317,-616.19861654,0.00029,2]
[312801531,1706266246062,-497.71456125,0.00028999,2]
[312801532,1706266246071,-2254.71348276,0.00029,2]
[312801533,1706266246233,-466.36153398,0.00029,2]
[312801538,1706266313380,200.79168995,0.000231,7]
[312801539,1706266318363,200.79168995,0.0002655,12]
[312801550,1706266590817,291.22,0.00020429,2]
[312801564,1706267079873,276.65,0.00019818,2]
[312801576,1706267198983,2000.0,0.00027,7]
[312801577,1706267312980,156.54152571,0.00021532,2]
[312801578,1706267329868,-614.0,0.00021628,2]
[312801580,1706267407133,5315.81,0.0002145,2]
[312801605,1706267432101,-311.2997495,0.00021627,2]
[312801635,1706267432378,-221.91690781,0.00021627,2]
[312801638,1706267432388,-3128.67061219,0.00021628,2]
[312801640,1706267432399,-662.3,0.00021628,2]
[312801642,1706267432410,-565.61241646,0.00021628,2]
[312801644,1706267432419,-139.86755474,0.00021629,2]
[312801660,1706267439594,-860.13244526,0.00021629,2]
[312801661,1706267439604,-13550.31067848,0.0002163,2]
[312801662,1706267439615,-805.5038784,0.0002163,2]
[312801663,1706267439626,-257.84999975,0.0002163,2]
[312801664,1706267439677,-615.06055489,0.0002163,2]
[312801665,1706267439697,-966.70973345,0.0002163,2]
[312801666,1706267439707,-925.75,0.00021632,2]
[312801667,1706267439717,-369.6,0.0002166,2]
[312801668,1706267439726,-182.33,0.00021661,2]
[312801669,1706267439735,-156.54152567,0.0002176,2]
[312801670,1706267439745,-188.06,0.00021806,2]
[312801671,1706267439754,-1100.77,0.00021808,2]
[312801672,1706267439764,-370.29,0.00021847,2]
[312801673,1706267439773,-749.06,0.0002185,2]
[312801674,1706267439783,-150.99,0.0002185,2]
[312801675,1706267439794,-370.64138861,0.000219,2]
[312801676,1706267439804,-2685.94,0.00021918,2]
[312801677,1706267439816,-156.54152567,0.00021988,2]
[312801678,1706267439826,-161.83,0.00022062,2]
[312801679,1706267439835,-276.65,0.00022082,2]
[312801680,1706267439845,-630.4,0.00022198,2]
[312801681,1706267439855,-156.54152567,0.00022216,2]
[312801682,1706267439865,-161.83,0.00022226,2]
[312801683,1706267439878,-161.83,0.0002239,2]
[312801684,1706267439888,-156.54152567,0.00022444,2]
[312801685,1706267439897,-161.83,0.00022554,2]
[312801686,1706267439906,-207.0,0.00022613,2]
[312801687,1706267439916,-749.06,0.00022658,2]
[312801688,1706267439925,-156.54152567,0.00022672,2]
[312801689,1706267439935,-161.83,0.00022718,2]
[312801690,1706267439945,-238.36749515,0.00022795,3]
[312801693,1706267439956,-161.83,0.00022883,2]
[312801696,1706267439965,-406.75836522,0.0002289,2]
[312801698,1706267439974,-652.5496,0.000229,2]
[312801700,1706267439983,-1835.0968,0.000229,2]
[312801702,1706267439993,-406.78,0.000229,2]
[312801704,1706267440003,-5000.0,0.000229,2]
[312801706,1706267440012,-206.2467,0.000229,2]
[312801708,1706267440021,-156.54152567,0.000229,2]
[312801710,1706267440032,-151.54492027,0.000229,2]
[312801712,1706267440041,-2567.96632423,0.000229,2]
[312801714,1706267440050,-803.11479398,0.000229,2]
[312801716,1706267440059,-221.15744731,0.00022998,2]
[312801718,1706267440070,-155.35505718,0.00022998,2]
[312801720,1706267440079,-437.49999993,0.00022998,2]
[312801722,1706267440087,-163.16886553,0.00022998,2]
[312801724,1706267440099,-302.19373493,0.00022998,2]
[312801727,1706267440108,-4628.64325741,0.00022999,2]
[312801729,1706267440118,-10816.41045741,0.00023,2]
[312801747,1706267440288,-17462.39568916,0.00023,2]
[312801750,1706267440299,-1628.84,0.00023,2]
[312801752,1706267440310,-5198.95292592,0.00023,2]
[312801754,1706267440322,-974.32618933,0.00023,2]
[312801757,1706267440338,-2828.8378332,0.00023,2]
[312801781,1706267440653,-2703.8869799,0.00023,2]
[312801797,1706267442819,-449.43,0.00021644,2]
[312801798,1706267442828,-449.43,0.00022445,2]
[312801799,1706267442835,-31207.71359068,0.00023,2]
[312801800,1706267442845,-264.21307195,0.00023,2]
[312801801,1706267442857,-3893.1282,0.00023,2]
[312801880,1706267443354,-613.99421483,0.00023,2]
[312801894,1706267443465,-4643.50578512,0.00023,2]
[312801908,1706267443642,-4094.47981747,0.00023,2]
[312801922,1706267446227,-3540.29417965,0.00022999,2]
[312801923,1706267446236,-61773.14190165,0.00023,2]
[312801924,1706267446248,-340.20795849,0.00023,2]
[312801925,1706267446259,-259.68500056,0.00023,2]
[312801926,1706267446271,-1121.3766687,0.00023,2]
[312801927,1706267446291,-1888.46218531,0.00023,2]
[312801928,1706267446344,-4088.83168001,0.00023,2]
[312801929,1706267446356,-2000.0,0.00023,2]
[312801930,1706267446406,-300.0,0.00023,2]
[312801956,1706267460252,400.0,0.000226,8]
[312801957,1706267462471,800.0,0.000227,8]
[312801958,1706267464566,1200.0,0.000228,8]
[312801959,1706267466679,1600.0,0.000229,8]
[312801960,1706267542234,158.8089,0.0002153,2]
[312801961,1706267973101,264.58,0.00020745,2]
[312801962,1706268244884,-503.0,0.0002189,2]
[312801963,1706268314736,219.65,0.00017504,2]
[312801964,1706268402379,251.35,0.00019942,2]
[312801965,1706268438592,-219.90355198,0.00021739,2]
[312801966,1706268438611,-242.86814377,0.00021796,2]
[312801967,1706268438629,-533.21665731,0.00021797,2]
[312801968,1706268438649,-1004.01164694,0.00021798,2]
[312801969,1706268450317,-1000.0,0.00021738,2]
[312801970,1706268450339,-1000.0,0.00021798,2]
[312801971,1706268468068,-1000.0,0.00021798,2]
[312801972,1706268477211,-191.28294559,0.00021798,2]
[312801973,1706268477234,-1551.96,0.00021823,2]
[312801974,1706268477256,-969.43,0.0002186,2]
[312801975,1706268477282,-158.84127213,0.000219,2]
[312801976,1706268477302,-250.0,0.00021918,2]
[312801977,1706268477324,-533.28,0.00021928,2]
[312801978,1706268488155,-353.08,0.00022,2]
[312801979,1706268488178,-162.79,0.00022,2]
[312801980,1706268488200,-158.84127213,0.00022067,2]
[312801981,1706268488222,-162.79,0.00022128,2]
[312801982,1706268488243,-150.99,0.00022206,2]
[312801983,1706268488266,-251.35,0.00022206,2]
[312801984,1706268488287,-2490.09512574,0.00022211,2]
[312801985,1706268488307,-158.84127213,0.00022233,2]
[312801986,1706268488328,-162.79,0.00022255,2]
[312801987,1706268488348,-150.0,0.00022359,2]
[312801988,1706268488367,-6472.82,0.0002236,2]
[312801989,1706268488389,-162.79,0.00022382,2]
[312801990,1706268488410,-158.84127213,0.000224,2]
[312801991,1706268488431,-14878.18684015,0.00022467,2]
[312801995,1706268634631,-3188.87467588,0.00021982,2]
[312801996,1706268634641,-444.70894755,0.00021999,2]
[312801997,1706268634653,-88.50770976,0.00021999,2]
[312801998,1706268634662,-475.69745549,0.00021999,2]
[312801999,1706268634698,-524.30254451,0.00021999,2]
[312802000,1706268634708,-239.24088123,0.00022,2]
[312802001,1706268634717,-8545.36474561,0.00022051,2]
[312802002,1706268634759,-4944.50459879,0.00022051,2]
[312802011,1706268638312,-1358.51152042,0.00022051,2]
[312802013,1706268638333,-10392.95,0.00022052,2]
[312802015,1706268638344,-162.79,0.0002251,2]
[312802017,1706268638356,-158.84127213,0.00022567,2]
[312802019,1706268638366,-150.0,0.00022593,2]
[312802021,1706268638378,-295.68,0.00022601,2]
[312802022,1706268638392,-162.79,0.00022637,2]
[312802023,1706268638403,-247.42374992,0.00022669,2]
[312802024,1706268638414,-158.84127213,0.00022733,2]
[312802025,1706268638426,-533.28,0.00022739,2]
[312802026,1706268638437,-162.79,0.00022764,2]
[312802027,1706268638448,-499.99,0.00022764,2]
[312802028,1706268638460,-3398.11,0.00022764,2]
[312802029,1706268638471,-549.91,0.00022764,2]
[312802030,1706268638483,-228.82184781,0.000228,3]
[312802031,1706268638494,-182.33,0.00022824,2]
[312802032,1706268638505,-1198.64033764,0.0002288,2]
[312802033,1706268638529,-2966.31717567,0.0002288,2]
[312802034,1706268638544,-399.13216622,0.0002288,2]
[312802035,1706268638567,-314.24252047,0.0002288,2]
[312802036,1706268638578,-610.2435235,0.00022889,2]
[312802037,1706268638799,-1916.45947649,0.00022889,2]
[312802038,1706268638821,-162.79,0.00022892,2]
[312802039,1706268638832,-1000.0,0.00022898,2]
[312802041,1706268638843,-242.66834507,0.00022898,2]
[312802043,1706268638855,-158.86466524,0.00022898,2]
[312802044,1706268638866,-230.86080006,0.00022898,2]
[312802046,1706268638878,-388.2346468,0.00022899,2]
[312802049,1706268638911,-617.79394002,0.00022899,2]
[312802051,1706268638922,-28792.28782608,0.00022899,2]
[312802053,1706268638934,-9101.9375,0.000229,2]
[312802055,1706268638945,-2501.9807339,0.000229,2]
[312802056,1706268638969,-817.52,0.000229,2]
[312802057,1706268638982,-716.637915,0.000229,2]
[312802100,1706268641894,-1023.25350685,0.000229,2]
[312802101,1706268641908,-1120.81999996,0.000229,2]
[312802102,1706268641977,-411.0204,0.000229,2]
[312802103,1706268641990,-337.32,0.000229,2]
[312802121,1706268643531,-5032.2312,0.000229,2]
[312802122,1706268643653,-4093.87604003,0.000229,2]
[312802123,1706268643749,-326.6151654,0.000229,2]
[312802124,1706268643764,-363.3463005,0.000229,2]
[312802125,1706268643802,-1005.41096001,0.000229,2]
[312802126,1706268643823,-26002.77587835,0.000229,2]
[312802127,1706268643835,-151.54492027,0.000229,2]
[312802129,1706268643850,-5000.0,0.000229,2]
[312802131,1706268643863,-158.84127213,0.000229,2]
[312802133,1706268643874,-226.21455788,0.000229,2]
[312802135,1706268643885,-573.56899739,0.000229,2]
[312802137,1706268643903,-7222.25645104,0.0002298,2]
[312802145,1706268645985,-8204.43989874,0.0002298,2]
[312802191,1706268646487,-1124.39167392,0.0002298,2]
[312802214,1706268646917,-3066.32348462,0.0002298,2]
[312802226,1706268731262,385.87106289,0.0002535,10]
[312802227,1706268840544,248.93,0.00020035,2]
[312802228,1706268876988,308.69685032,0.0002535,10]
[312802229,1706268881213,300.0,0.000226,8]
[312802230,1706268883205,600.0,0.000227,8]
[312802231,1706268885321,900.0,0.000228,8]
[312802232,1706268887418,1200.0,0.000229,8]
[312802233,1706268946722,-210.9,0.00021804,2]
[312802234,1706268946742,-2906.43367088,0.00021926,2]